[Event "ITT 1st Parada Jamundi 2022"]
[Site "Jamundi Valle"]
[Date "2022.12.07"]
[Round "2.5"]
[White "Delgado Ramirez, Neuris"]
[Black "Campos Gomez, Manuel"]
[Result "1/2-1/2"]
[ECO "B04"]
[WhiteElo "2572"]
[BlackElo "2322"]
[Annotator "TA"]
[PlyCount "211"]
[EventDate "2022.12.05"]
[EventType "swiss"]
[EventCountry "COL"]
[SourceTitle "playchess.com"]
[Source "ChessBase"]
[SourceQuality "1"]
[TimeControl "5400+30"]

{[%evp 22,210,43,25,30,28,33,29,29,20,14,11,29,30,21,0,-6,-31,-8,0,0,0,0,0,-14,-29,-33,-11,-8,-14,0,0,0,8,8,6,67,66,66,70,71,46,48,53,55,47,49,51,54,53,65,58,77,52,46,46,47,47,47,47,47,43,40,47,52,25,25,25,25,9,10,8,12,0,8,8,32,32,32,33,42,17,30,17,27,25,26,29,32,8,71,71,70,71,70,70,71,74,226,14,14,0,14,0,0,0,0,0,8,8,14,13,14,13,69,0,0,0,0,0,0,0,0,0,0,0,0,0,66,66,66,0,0,0,66,66,66,66,66,66,66,66,69,69,69,69,69,69,69,69,69,69,69,69,69,69,70,70,73,73,73,70,70,70,73,70,73,73,73,73,73,73,73,0,73,73,73,73,73,73,73,73,73,73,73,73,73,0,0,0,0]} 1. e4 {[%emt 0:21:21]} Nf6 {[%emt 0:00:07]} 2. e5 {[%emt 0:00:31]} Nd5 {[%emt 0:00:06]} 3. d4 {[%emt 0:00:05]} d6 {[%emt 0:00:03]} 4. Nf3 {[%emt 0:00:06]} g6 {[%emt 0:00:05]} 5. Bc4 {[%emt 0:00:08]} Nb6 {[%emt 0:00:03]} 6. Bb3 {[%emt 0:00:05]} Bg7 {[%emt 0:00:05]} 7. Qe2 {[%emt 0:00:07]} O-O {[%emt 0:00:54]} 8. h3 {[%emt 0:04:28]} c5 {[%emt 0:00:17]} 9. e6 {[%emt 0:07:17]} fxe6 {[%emt 0:13:29]} 10. dxc5 {[%emt 0:03:52]} dxc5 {[%emt 0:00:40]} 11. Bxe6+ {[%emt 0:01:49]} Kh8 {[%emt 0:00:39]} 12. Ng5 {[%emt 0:02:24]} (12. Bxc8 {simplifies} Qxc8 13. O-O Nc6 14. c3) 12... Nc6 $1 {[%emt 0:01:33]} 13. c3 {[%emt 0:01:29]} (13. Nf7+ Rxf7 $1 14. Bxf7 Ne5 $15) 13... Ne5 {[%emt 0:13:34]} 14. O-O {[%emt 0:01:17]} h6 $1 {[%emt 0:21:39]} 15. Bxc8 {[%emt 0:05:38]} (15. Rd1 {with more complications.} Qe8 16. Bxc8 Qxc8 17. Ne4) 15... Qxc8 {[%emt 0:00:09]} (15... Rxc8 $2 16. Ne6 Qd3 17. Qxd3 Nxd3 18. Nxf8 Rxf8 19. Nd2 $18) 16. Ne4 {[%emt 0:00:05]} Nd5 {[%emt 0:04:25]} 17. Na3 {[%emt 0:04:57]} c4 {[%emt 0:02:47]} 18. Ng3 {[%emt 0:02:20]} (18. Rd1 $5 {[%cal Rd1d5]} Qc6 19. Ng3 $11) 18... Nd3 {[%emt 0:08:58]} 19. Qg4 {[%emt 0:05:58]} Qc5 {[%emt 0:01:29]} (19... Qxg4 {simplifies} 20. hxg4 Rac8 21. Rb1 a6) 20. Qxc4 {[%emt 0:06:10]} Rxf2 $1 {[%emt 0:00:15]} 21. Qxc5 {[%emt 0:00:03]} Rxf1+ {[%emt 0:00:06]} 22. Nxf1 {[%emt 0:00:57]} Nxc5 {[%emt 0:00:05]} 23. Bd2 {[%emt 0:01:47]} Nd3 {[%emt 0:05:07]} 24. Rb1 {[%emt 0:02:34]} Rb8 {[%emt 0:01:15]} 25. Nc2 {[%emt 0:01:05]} b5 {[%emt 0:00:35]} 26. Ne1 {[%emt 0:00:23]} Ne5 {[%emt 0:02:54]} 27. Rd1 {[%emt 0:02:34]} e6 {[%emt 0:03:47]} 28. Ne3 {[%emt 0:03:39]} b4 {[%emt 0:05:27]} (28... Nf6 $11) 29. Nxd5 $14 {[%emt 0:01:52]} exd5 {[%emt 0:00:01]} 30. cxb4 {[%emt 0:01:21]} Nc4 $1 {[%emt 0:01:55]} 31. Bc3 {[%emt 0:00:53]} Nxb2 {[%emt 0:00:25]} 32. Bxg7+ {[%emt 0:00:18]} Kxg7 {[%emt 0:00:01]} 33. Rxd5 {[%emt 0:00:15]} Rxb4 {[%emt 0:00:19]} 34. Rd7+ {[%emt 0:00:16]} Kf6 {[%emt 0:00:05]} 35. Rxa7 {[%emt 0:00:08]} h5 {[%emt 0:00:30]} 36. Ra6+ {[%emt 0:04:20]} Kf5 {[%emt 0:00:36]} 37. Nc2 {[%emt 0:00:24]} Re4 {[%emt 0:00:28]} 38. Rb6 {[%emt 0:01:26]} Nd3 {[%emt 0:01:11]} 39. Rb3 {[%emt 0:01:07]} Nc1 {[%emt 0:01:48]} 40. Rf3+ {[%emt 0:01:24]} Kg5 {[%emt 0:02:10]} 41. a3 $1 {[%emt 0:00:07]} Ne2+ {[%emt 0:00:40]} 42. Kf2 {[%emt 0:01:06]} Nf4 {[%emt 0:00:40]} 43. Re3 {[%emt 0:01:34]} Rc4 {[%emt 0:00:16]} 44. Nb4 {[%emt 0:00:17]} h4 {[%emt 0:00:51]} 45. Kf3 {[%emt 0:00:17]} Kf5 {[%emt 0:01:54]} 46. Nd3 {[%emt 0:01:33]} Ne6 {[%emt 0:00:52]} 47. Re5+ {[%emt 0:01:52]} Kf6 {[%emt 0:00:18]} 48. Ra5 {[%emt 0:00:04]} Rc2 {[%emt 0:02:49]} (48... Rc3 $5 {[%cal Rc3d3]} 49. Ke3 Rc2 $14) 49. Ne5 {[%emt 0:04:33]} g5 {[%emt 0:04:04]} 50. Ng4+ {[%emt 0:00:30]} Kg6 {[%emt 0:00:07]} 51. Ne3 {[%emt 0:01:42]} Rb2 {[%emt 0:00:30]} 52. Ra6 {[%emt 0:00:42]} Kf6 {[%emt 0:00:31]} 53. Ke4 {[%emt 0:00:16]} Kf7 {[%emt 0:01:22]} 54. Ra7+ {[%emt 0:02:00]} Kg6 $1 {[%emt 0:00:30]} 55. a4 {[%emt 0:00:48]} Nf4 {[%emt 0:01:09]} (55... Rb4+ $11 56. Ke5 Nc5) 56. Ra6+ $1 $16 {[%emt 0:00:39]} Kf7 {[%emt 0:00:07]} 57. Kf5 $1 {[%emt 0:00:31]} Nxg2 {[%emt 0:00:23]} 58. Nc4 {[%emt 0:00:37]} Rb3 {[%emt 0:00:28]} 59. Ra7+ {[%emt 0:00:58]} (59. Kxg5 Rxh3 60. Ne5+ Ke7 $11) 59... Ke8 $2 {[%emt 0:01:06] [#]} (59... Kg8 $16) 60. Kxg5 $2 {[%emt 0:01:59]} ({White must play} 60. a5 $1 $18) 60... Rxh3 $11 {[%emt 0:00:16]} 61. Ne5 {[%emt 0:00:28]} Rc3 {[%emt 0:01:26]} 62. Rh7 {[%emt 0:00:25]} Kd8 {[%emt 0:00:33]} (62... h3 {seems wilder.} 63. a5 Ra3 64. Kf6 Kd8) 63. a5 {[%emt 0:00:19]} Ra3 {[%emt 0:00:33]} 64. Kf6 {[%emt 0:00:32]} Kc8 {[%emt 0:00:23]} 65. Nc4 {[%emt 0:00:49]} Ra2 {[%emt 0:00:31]} 66. Ke5 {[%emt 0:00:36]} Kb8 {[%emt 0:00:27]} 67. Kd6 {[%emt 0:00:14]} Rc2 {[%emt 0:00:41]} (67... Nf4 $11) 68. Nb6 {[%emt 0:00:55]} ({Better is} 68. Ne5 $14 Rd2+ 69. Kc6 Rc2+ 70. Kb5 Rb2+ 71. Kc6 Rc2+ 72. Kb6 Rb2+ 73. Kc5 Rc2+ 74. Kb6 Rb2+ 75. Kc5 Rc2+ 76. Kb5 Rb2+ 77. Kc5) 68... Ne3 $1 $11 {[%emt 0:00:23]} 69. Nd7+ {[%emt 0:00:56]} (69. Rxh4 $2 Nf5+ 70. Kd5 Nxh4 $19) (69. a6 $5 Nc4+ $8 70. Kc6 Nxb6+ 71. Kxb6 Rb2+ 72. Kc6 $11) 69... Ka8 {[%emt 0:00:33]} 70. a6 {[%emt 0:00:33]} (70. Rxh4 $2 Nf5+ 71. Ke5 Nxh4 $19) 70... Nc4+ {[%emt 0:00:16]} 71. Kd5 {[%emt 0:00:11]} Ne3+ {[%emt 0:00:47]} 72. Kd4 {[%emt 0:00:26]} Nc4 $1 {[%emt 0:00:28]} 73. Nc5 {[%emt 0:00:44]} Nb6 {[%emt 0:00:28]} 74. Ne6 {[%emt 0:00:33]} (74. Rxh4 $2 Rc4+ 75. Ke5 Rxh4 $19) 74... h3 {[%emt 0:00:35]} (74... Rc4+ $11 75. Ke5 Rc6) 75. Nc7+ $1 $14 {[%emt 0:00:30]} ({Don't play} 75. Rxh3 Rc4+ 76. Kd3 Ka7 $11) 75... Kb8 {[%emt 0:00:11]} 76. Nb5 {[%emt 0:00:10]} (76. a7+ $1 $14 Kxa7 77. Ne8+ Nd7 78. Rxh3) 76... Rc4+ $11 {[%emt 0:00:14]} 77. Kd3 {[%emt 0:00:10]} Ra4 {[%emt 0:00:40]} (77... Rc1 $11) 78. Rb7+ $14 {[%emt 0:01:18]} ({Much worse is} 78. Rxh3 Rxa6 79. Rh7 Nd5 $11) 78... Kc8 {[%emt 0:00:25]} 79. Rxb6 {[%emt 0:00:35]} h2 {[%emt 0:00:08]} 80. Rh6 {[%emt 0:00:06]} (80. Rc6+ {is interesting.} Kd7 81. Rd6+ Kc8 82. Rh6) 80... Rxa6 {[%emt 0:00:20]} 81. Rxh2 {[%emt 0:00:05]} Kb7 {[%emt 0:00:40]} 82. Kc4 {[%emt 0:00:10]} Rg6 {[%emt 0:00:20]} 83. Nd4 {[%emt 0:00:12]} Kc7 {[%emt 0:00:41]} 84. Ra2 {[%emt 0:00:20]} Rh6 {[%emt 0:00:27]} 85. Ra7+ {[%emt 0:00:16]} Kb6 {[%emt 0:00:09]} 86. Rf7 {[%emt 0:00:14]} Rd6 {[%emt 0:00:18]} 87. Rf8 {[%emt 0:00:35]} Rh6 {[%emt 0:00:48]} 88. Kd5 {[%emt 0:00:37]} Rh5+ {[%emt 0:00:18]} 89. Kd6 {[%emt 0:00:04]} Ka5 {[%emt 0:00:21]} 90. Rb8 {[%emt 0:00:09]} Ka4 {[%emt 0:00:23]} 91. Ne2 {[%emt 0:00:18]} Ka3 {[%emt 0:00:38]} 92. Nf4 {[%emt 0:00:34]} Rf5 {[%emt 0:00:59]} 93. Nd5 {[%emt 0:00:07]} Rf1 {[%emt 0:00:13]} 94. Kc5 {[%emt 0:00:08]} Rc1+ {[%emt 0:00:14] [#]} 95. Kd4 $1 {[%emt 0:00:08]} Ka4 {[%emt 0:00:45]} 96. Ne3 {[%emt 0:00:51]} Rh1 {[%emt 0:00:36]} 97. Nd5 {[%emt 0:00:41]} Rc1 {[%emt 0:00:06]} 98. Nc3+ {[%emt 0:00:12]} Ka5 {[%emt 0:00:04]} 99. Rb3 {[%emt 0:00:57]} Ka6 {[%emt 0:00:38]} 100. Kc5 {[%emt 0:00:06]} Rh1 {[%emt 0:00:28]} 101. Ne4 {[%emt 0:00:19]} Rc1+ {[%emt 0:01:04]} 102. Kd5 {[%emt 0:00:20]} Ka5 {[%emt 0:00:06]} 103. Nc5 {[%emt 0:01:33]} Rd1+ {[%emt 0:00:18]} 104. Kc4 {[%emt 0:00:10]} ({Of course not} 104. Kc6 Rd6+ 105. Kc7 Rc6+ 106. Kd7 Rxc5 $11) ({White should try} 104. Nd3 $16 {Kc6 would kill now.} Rh1 105. Rb8) 104... Rd4+ $1 $11 {[%emt 0:00:17]} 105. Kc3 {[%emt 0:00:03]} Rc4+ $1 {[%emt 0:00:09]} 106. Kxc4 {[%emt 0:00:02]} 1/2-1/2

[Event "ITT 1st Parada Jamundi 2022"]
[Site "Jamundi Valle"]
[Date "2022.12.07"]
[Round "2.6"]
[White "Larino Nieto, David"]
[Black "Mateus, Alejandro"]
[Result "1/2-1/2"]
[ECO "A07"]
[WhiteElo "2466"]
[BlackElo "2308"]
[Annotator "TA"]
[PlyCount "98"]
[EventDate "2022.12.05"]
[EventType "swiss"]
[EventCountry "COL"]
[SourceTitle "playchess.com"]
[Source "ChessBase"]
[SourceQuality "1"]
[TimeControl "5400+30"]

{[%evp 12,98,25,15,29,16,18,7,39,49,51,54,50,55,64,55,59,56,64,51,51,61,52,62,83,55,66,60,89,20,18,10,62,81,64,36,33,32,30,0,0,0,0,-78,-66,-77,-72,-81,-66,-83,0,0,0,-66,-66,-66,-15,-14,0,0,0,0,0,0,0,0,0,0,0,0,0,0,0,0,0,0,0,0,0,0,0,0,0,0,0,0,0,0,0]} 1. g3 {[%emt 0:13:07]} d5 {[%emt 0:02:06]} 2. Nf3 {[%emt 0:00:25]} Nf6 {[%emt 0:00:12]} 3. Bg2 {[%emt 0:00:05]} c6 {[%emt 0:00:43]} 4. O-O {[%emt 0:00:07]} g6 {[%emt 0:01:18]} 5. b3 {[%emt 0:00:30]} Bg7 {[%emt 0:00:08]} 6. Bb2 {[%emt 0:00:03]} O-O {[%emt 0:00:13]} 7. d3 {[%emt 0:00:10]} a5 {[%emt 0:05:45] A07: Réti Opening: New York and Capablanca Systems.} 8. a4 {[%emt 0:03:44]} Nbd7 {[%emt 0:00:55]} 9. Nbd2 {[%emt 0:01:28]} Nc5 {[%emt 0:00:44]} 10. Re1 {[%emt 0:03:59] [#]} Qb6 $146 {[%emt 0:03:40]} ({Predecessor:} 10... Re8 11. e4 Qb6 12. e5 Nfd7 13. d4 Ne6 14. Rb1 Ndf8 15. Nf1 Nc7 16. Ne3 h6 {1-0 (41) Langeweg,K-Quinteros,M Amsterdam 1973}) 11. e4 {[%emt 0:03:49]} dxe4 {[%emt 0:19:05]} 12. dxe4 {[%emt 0:01:10]} (12. Nxe4 Nfxe4 13. Bxg7 Nxf2 $15) 12... Bg4 {[%emt 0:09:49][%cal Oc5e4]} 13. h3 {[%emt 0:03:18]} (13. e5 {simplifies} Nd5 14. h3 Bxf3 15. Qxf3 Rfd8 16. Nc4) 13... Ncxe4 {[%emt 0:11:04]} 14. Nxe4 {[%emt 0:05:59]} Nxe4 {[%emt 0:00:25]} 15. Bd4 {[%emt 0:00:08]} Bxf3 {[%emt 0:07:21]} 16. Bxb6 {[%emt 0:00:53]} Bxd1 {[%emt 0:00:10]} 17. Raxd1 {[%emt 0:00:02]} Nc3 {[%emt 0:07:20]} 18. Rd7 {[%emt 0:04:43]} e6 {[%emt 0:00:40]} 19. Rxb7 {[%emt 0:01:00]} Nd5 {[%emt 0:00:32]} 20. Bxd5 {[%emt 0:02:26]} (20. Ba7 $16) 20... cxd5 $11 {[%emt 0:00:46]} 21. c4 {[%emt 0:00:01]} dxc4 {[%emt 0:07:47]} (21... Rab8 $11 22. Rxb8 Rxb8 23. Bxa5 Ra8) 22. bxc4 $14 {[%emt 0:00:21]} Rfc8 {[%emt 0:00:07]} 23. Bc7 {[%emt 0:00:56] White has more active pieces.} Bd4 {[%emt 0:07:49]} 24. Rd1 {[%emt 0:02:16]} e5 {[%emt 0:00:53]} 25. Rdb1 {[%emt 0:00:22]} Ra6 {[%emt 0:05:54]} 26. R1b5 {[%emt 0:00:49][%csl LRa5,LRe5]} Rf6 {[%emt 0:02:41]} 27. Rd5 {[%emt 0:04:34]} (27. Rxa5 Rxf2 28. Rab5 Rc2+ 29. Kf1 Rxc4 30. Bxe5 Bxe5 31. Rxe5 Rxa4 $17) (27. Rb8 $11 {keeps the balance.} Rxb8 28. Rxb8+ Kg7 29. Rb5) 27... Bxf2+ $17 {[%emt 0:00:59]} (27... Rxf2 $2 {[#]} 28. Rxd4 $1 {[%mdl 512]} (28. Bxa5 $2 {too greedy.} Ra2+ 29. Rxd4 exd4 $19) 28... Rc2 29. Bxe5 $18) 28. Kg2 {[%emt 0:00:01]} Bd4 {[%emt 0:00:46]} 29. h4 {[%emt 0:00:55]} (29. Bxe5 $2 Rf2+ 30. Kg1 (30. Kh1 $2 Bxe5 31. Rxe5 Rxc4 $19) 30... Rb2+ 31. Bxd4 Rxb7 32. Rxa5 Rb4 $19) 29... h5 {[%emt 0:01:27]} 30. Rxa5 {[%emt 0:01:39]} (30. Bxe5 $2 {loses.} Rf2+ 31. Kg1 Rb2+ 32. Bxd4 Rxb7 33. Rxa5 Rb4 $19) 30... Rc6 {[%emt 0:01:42]} (30... Rf2+ $17 31. Kh3 Re2) 31. Bxe5 $11 {[%emt 0:00:04]} Rxc4 {[%emt 0:00:45]} 32. Bxd4 {[%emt 0:00:14]} (32. Rb8 $1 $11 Rc2+ 33. Kf3 Rxb8 34. Bxb8) 32... Rxd4 {[%emt 0:00:01][%mdl 4096] Endgame KRR-KRR} 33. Raa7 {[%emt 0:00:07]} Rc2+ {[%emt 0:01:27]} ({Black should play} 33... Rd2+ $1 $15 34. Kf3 Rc3+ 35. Ke4 Rf2 36. Ra8+ Kg7) 34. Kf3 $1 {[%emt 0:00:12] The position is equal.} Rc3+ {[%emt 0:00:25]} 35. Ke2 $1 {[%emt 0:00:12]} Rxg3 {[%emt 0:00:30] [#] aiming for ...Rf4.} 36. Rxf7 {[%emt 0:00:30]} Rxa4 {[%emt 0:01:20]} 37. Rg7+ {[%emt 0:00:02]} Kf8 {[%emt 0:00:23]} 38. Raf7+ {[%emt 0:00:10]} Ke8 {[%emt 0:00:04]} 39. Re7+ {[%emt 0:00:19]} Kf8 {[%emt 0:00:33]} 40. Ref7+ {[%emt 0:00:03]} Ke8 {[%emt 0:00:05]} 41. Rb7 {[%emt 0:00:19][%cal Rb7b8]} Ra2+ {[%emt 0:00:38]} (41... Rxh4 $2 42. Rg8#) 42. Kf1 {[%emt 0:00:02][%cal Rb7b8]} Kf8 {[%emt 0:01:10]} 43. Rgf7+ {[%emt 0:00:29]} Kg8 {[%emt 0:00:29]} 44. Rfe7 {[%emt 0:00:19][%cal Re7e8]} Rf3+ {[%emt 0:00:34]} 45. Ke1 {[%emt 0:00:03]} Raf2 {[%emt 0:00:48]} 46. Rg7+ {[%emt 0:00:22]} Kf8 {[%emt 0:00:18]} 47. Rxg6 {[%emt 0:00:08]} Rf1+ {[%emt 0:00:21]} 48. Ke2 {[%emt 0:00:04]} R1f2+ {[%emt 0:00:05]} 49. Ke1 {[%emt 0:00:01]} Rf1+ {[%emt 0:00:08] Weighted Error Value: White=0.13 (very precise) /Black=0.10 (very precise)} 1/2-1/2

[Event "ITT 1st Parada Jamundi 2022"]
[Site "Jamundi Valle"]
[Date "2022.12.07"]
[Round "2.7"]
[White "Herrera, Juan Sebastian"]
[Black "Valdes Martinez, Miguel A."]
[Result "1-0"]
[ECO "A83"]
[WhiteElo "2297"]
[BlackElo "2104"]
[Annotator "TA"]
[PlyCount "89"]
[EventDate "2022.12.05"]
[EventType "swiss"]
[EventCountry "COL"]
[SourceTitle "playchess.com"]
[Source "ChessBase"]
[SourceQuality "1"]
[TimeControl "5400+30"]

{[%evp 15,89,31,37,29,42,35,34,29,35,0,5,0,5,-9,0,-11,-8,-4,0,-6,9,9,9,8,9,0,0,0,46,47,60,0,13,8,18,-2,-3,-19,-29,-41,19,16,276,277,1590,363,1462,1468,2322,2291,2097,2215,2039,2032,4878,2115,5868,5812,1071,883,2015,1189,1160,1129,29972,29974,29972,29973,29980,29981,29981,29982,29982,29983,29982,29980]} 1. d4 {[%emt 0:00:03]} f5 {[%emt 0:02:40]} 2. Nc3 {[%emt 0:00:19]} Nf6 {[%emt 0:05:15]} 3. Bg5 {[%emt 0:01:03]} e6 {[%emt 0:00:38]} 4. e4 {[%emt 0:00:05]} fxe4 {[%emt 0:00:49]} 5. Nxe4 {[%emt 0:00:02]} Be7 {[%emt 0:00:06]} 6. Bxf6 {[%emt 0:00:08]} Bxf6 {[%emt 0:00:13]} 7. Qh5+ {[%emt 0:00:14]} g6 {[%emt 0:03:25]} 8. Qh6 {[%emt 0:00:05]} Qe7 {[%emt 0:03:32] The main line 8...Qe7 scores better than 8...d5.} 9. Nxf6+ {[%emt 0:00:10] A83: Dutch Defence: Staunton Gambit with 3 Nc3 Nf6 4 Bg5.} Qxf6 {[%emt 0:00:13]} 10. O-O-O {[%emt 0:00:43]} Nc6 $1 {[%emt 0:02:00][%cal Bb8c6,Bc6b4,Bb4d5,Bd5f4][%mdl 32]} 11. Nf3 {[%emt 0:00:05] White is slightly better.} d6 {[%emt 0:18:29]} 12. h4 {[%emt 0:00:40]} Bd7 {[%emt 0:00:41] [#]} 13. Bd3 $146 {[%emt 0:15:51]} ({Predecessor:} 13. Qg5 Qxg5+ 14. hxg5 O-O 15. Bc4 Rae8 16. Rh4 Re7 17. Rdh1 Na5 18. Bd3 Bc6 19. Ne1 {1-0 (50) Munkhgal,G (2501)-Harsha,B (2509) Chess.com INT 2020}) 13... O-O-O {[%emt 0:01:20]} 14. Qg5 {[%emt 0:00:16]} Rhf8 {[%emt 0:03:54]} 15. Rd2 {[%emt 0:04:31]} Nb4 {[%emt 0:07:56]} 16. Bc4 {[%emt 0:10:22]} Nd5 {[%emt 0:10:55]} (16... Rde8 {simplifies} 17. h5 Bc6 18. hxg6 hxg6 19. Qxf6 Rxf6 20. Ne1 Nd5) 17. h5 {[%emt 0:12:36]} Nf4 {[%emt 0:16:54]} (17... Qxg5 {simplifies} 18. Nxg5 gxh5 19. Nxh7 Rf7) 18. hxg6 {[%emt 0:04:49]} hxg6 {[%emt 0:00:21][%cal Of4g2]} 19. g3 {[%emt 0:05:04]} Bc6 {[%emt 0:07:00]} 20. Qg4 {[%emt 0:03:46]} (20. Qxf4 {simplifies} Bxf3 21. Rh6 Qxf4 22. Bxe6+ Kb8 23. gxf4 Rxf4 24. Rxg6 d5 25. Rg3) 20... b5 {[%emt 0:01:13]} 21. d5 {[%emt 0:05:42]} Bd7 {[%emt 0:05:23]} (21... bxc4 $11 22. dxc6 c3) 22. Bxb5 $1 $14 {[%emt 0:15:41]} Bxb5 {[%emt 0:01:37]} 23. Nd4 {[%emt 0:00:01] Against Ne2+} (23. gxf4 $14 Bd7 24. dxe6 Qxe6 25. Qxe6 Bxe6 26. Rd4) 23... Bd7 {[%emt 0:00:51] Hoping for ...e5.} 24. gxf4 {[%emt 0:00:07][%cal Rd5e6]} exd5 {[%emt 0:02:41]} 25. Qe2 {[%emt 0:00:12] White wants to mate with Qa6+.} (25. Qg2 {simplifies} Qf7 26. f5 gxf5 27. Qf1) 25... Kb7 {[%emt 0:01:51][%cal Oc7c6] Prevents Qa6+.} (25... Qxf4 $2 26. Qa6+ Kb8 27. Rh3 $3 $18 {[%mdl 512]}) 26. Qf3 {[%emt 0:00:02]} (26. Qe3 $5 {[%cal Re3b3]} Ka8 27. Qf3 $11) 26... c6 {[%emt 0:01:34]} 27. Rh7 {[%emt 0:01:40][%cal Od4c6]} Rf7 {[%emt 0:00:32]} (27... Rh8 $15 28. Qb3+ Ka8 29. Rxh8 Rxh8) 28. Qb3+ $11 {[%emt 0:00:03]} Ka8 $2 {[%emt 0:00:38][%mdl 8192] [#] Black cannot hold the game after this.} (28... Kc7 $11 29. Rxf7 Qxf7) 29. Nb5 $1 $18 {[%emt 0:00:11][%cal Rb5c7]} ({And not} 29. Rxf7 Qxf7 30. Qf3 Re8 $15) 29... Be6 $2 {[%emt 0:01:45]} (29... Bc8 30. Nc7+ Rxc7 31. Rxc7 Qxf4) 30. Nc7+ {[%emt 0:00:34]} Rxc7 {[%emt 0:00:03]} 31. Rxc7 {[%emt 0:00:05][%csl Gc7][%cal Rb3b7]} Rb8 {[%emt 0:00:03] Prevents Qb7+.} 32. Qa3 {[%emt 0:00:29][%csl Ga3][%cal Rc7a7]} Rb7 {[%emt 0:00:24]} 33. Rxb7 {[%emt 0:00:20]} (33. Qxd6 Qxb2+ 34. Kd1 Bg4+ 35. f3 Bxf3+ 36. Ke1 Qc1+ 37. Kf2 Qxd2+ $11) 33... Kxb7 {[%emt 0:00:02]} 34. Qxd6 {[%emt 0:00:07][%mdl 4096] Endgame Threatens to win with Re2. KQR-KQB} Qf5 {[%emt 0:01:30]} 35. Rd3 {[%emt 0:00:25]} (35. Re2 $142 g5 36. Rxe6 Qxf4+ 37. Qxf4 gxf4 38. Rf6) 35... d4 {[%emt 0:00:08]} 36. Rxd4 {[%emt 0:01:04] Threatening mate with Rb4+.} a5 {[%emt 0:00:19] Prevents Rb4+.} 37. b3 {[%emt 0:02:20] Qe7+ is the strong threat.} Bd5 {[%emt 0:00:40]} 38. Qc5 {[%emt 0:00:16]} Qf6 {[%emt 0:00:42]} 39. c4 {[%emt 0:00:24][%cal Bc2c4,Bc4c5][%mdl 32]} Be4 {[%emt 0:00:38]} 40. Qe5 {[%emt 0:00:18] White mates.} Qxe5 {[%emt 0:00:37]} 41. fxe5 {[%emt 0:00:01][%cal Bf4e5,Be5e6][%mdl 32]} Bf5 {[%emt 0:00:09]} 42. c5 {[%emt 0:00:05]} Ka6 {[%emt 0:00:06]} 43. a4 {[%emt 0:00:05]} Kb7 {[%emt 0:00:42]} 44. Rd6 {[%emt 0:00:06]} Kc7 {[%emt 0:00:21]} 45. e6 {[%emt 0:00:05] Weighted Error Value: White=0.11 (very precise) /Black=0.53} 1-0

[Event "ITT 1st Parada Jamundi 2022"]
[Site "Jamundi Valle"]
[Date "2022.12.07"]
[Round "2.8"]
[White "Lopez Rayo, Santiago"]
[Black "Mora Munoz, Alejandro"]
[Result "1/2-1/2"]
[ECO "B96"]
[WhiteElo "2300"]
[BlackElo "1959"]
[Annotator "TA"]
[PlyCount "93"]
[EventDate "2022.12.05"]
[EventType "swiss"]
[EventCountry "COL"]
[SourceTitle "playchess.com"]
[Source "ChessBase"]
[SourceQuality "1"]
[TimeControl "5400+30"]

{[%evp 16,93,18,16,16,14,32,16,40,0,0,-15,-7,-20,-1,-38,-31,-26,-32,-34,-34,-34,-34,-34,-34,-34,-27,-26,-31,-109,-77,-76,-66,-58,-66,-66,-26,-50,-2,-4,0,-32,-28,-23,-24,-23,-16,-30,-23,-26,-28,-33,-29,-34,0,0,0,0,0,0,0,0,0,0,0,0,0,0,0,0,0,0,0,0,0,0,0,0,0,0]} 1. e4 {[%emt 0:00:03]} c5 {[%emt 0:00:37]} 2. Nf3 {[%emt 0:00:11]} d6 {[%emt 0:00:07]} 3. d4 {[%emt 0:00:07]} cxd4 {[%emt 0:00:05]} 4. Nxd4 {[%emt 0:00:10]} Nf6 {[%emt 0:00:10]} 5. Nc3 {[%emt 0:00:08]} a6 {[%emt 0:00:07]} 6. Bg5 {[%emt 0:00:26]} e6 {[%emt 0:00:08][%cal Be7e6,Be6e5,Be5e4][%mdl 32]} 7. f4 {[%emt 0:00:17]} h6 {[%emt 0:00:13]} 8. Bh4 {[%emt 0:00:06]} Qb6 {[%emt 0:00:20]} 9. a3 {[%emt 0:00:48]} Nc6 {[%emt 0:00:08] B96: Sicilian Najdorf: 6 Bg5 e6 7 f4, lines other than 7...Qb6 and 7...Be7.} (9... Qxb2 $2 10. Na4 $18) 10. Bf2 {[%emt 0:00:11][%cal Od4e6]} Qc7 {[%emt 0:00:06]} (10... Qxb2 $2 11. Na4 $18) 11. Qf3 {[%emt 0:00:25]} e5 {[%emt 0:00:47]} 12. Nf5 {[%emt 0:06:16]} ({White should try} 12. Nde2 $14) 12... Bxf5 $11 {[%emt 0:00:10]} 13. exf5 {[%emt 0:00:27]} O-O-O {[%emt 0:03:34][%cal Oe5e4] next ...e4! is good for Black.} 14. O-O-O {[%emt 0:01:43] Hoping for Bc4.} d5 {[%emt 0:03:30] [#] Prevents Bc4. Threatens to win with ...e4.} 15. Rxd5 $146 {[%emt 0:19:01]} ({Don't play} 15. Nxd5 Rxd5 16. Rxd5 e4 $15) (15. fxe5 {keeps more tension.} Nxe5 16. Qg3 Bd6 17. Nxd5 Nxd5 18. Rxd5 Nc4 19. Qxg7 Nxa3 20. Bd3) ({Predecessor:} 15. fxe5 Nxe5 16. Qg3 Bd6 17. Nxd5 Nxd5 18. Rxd5 Ng4 19. Rxd6 Qxd6 20. Qxg4 Qd2+ 21. Kb1 Qxf2 {0-1 (45) Pasti,A (2332)-Bronstein,O (2463) Miercurea Ciuc 2022}) 15... Rxd5 {[%emt 0:26:34]} 16. Nxd5 {[%emt 0:00:07] [#]} e4 $1 {[%emt 1:01:54]} 17. Nxc7 {[%emt 0:23:13]} exf3 {[%emt 0:00:00]} 18. Na8 $1 {[%emt 0:06:18]} Ng4 {[%emt 0:00:00] Pair of Knights!} 19. Bb6 {[%emt 0:01:26]} (19. Nb6+ $2 Kc7 20. Nd5+ Kd6 $19) 19... Bd6 {[%emt 0:00:00]} 20. gxf3 {[%emt 0:02:06]} Bxf4+ {[%emt 0:00:00]} 21. Kb1 {[%emt 0:00:14]} Nxh2 {[%emt 0:00:00]} 22. Bd3 {[%emt 0:07:28]} (22. Bg2 $15) 22... Kb8 {[%emt 0:00:00]} 23. Nc7 {[%emt 0:00:11]} Bxc7 {[%emt 0:00:00]} 24. Bxc7+ {[%emt 0:00:05][%mdl 64] [#] Remove Defender} Kxc7 {[%emt 0:00:00]} 25. Rxh2 $17 {[%emt 0:00:03][%mdl 4096] Endgame KRB-KRN} Ne5 {[%emt 0:00:00]} 26. Be4 {[%emt 0:00:10]} b6 {[%emt 0:00:00]} (26... Nc4 $15 {should be considered.}) 27. Rg2 $11 {[%emt 0:00:46]} Rh7 {[%emt 0:00:00]} 28. c4 {[%emt 0:03:09]} h5 {[%emt 0:00:00][%cal Bh6h5,Bh5h4][%mdl 32]} 29. f4 {[%emt 0:01:08]} Ng4 {[%emt 0:00:00]} 30. Rg3 {[%emt 0:12:42]} Nf6 {[%emt 0:00:00]} 31. Bf3 {[%emt 0:00:06]} h4 {[%emt 0:00:00]} 32. Rh3 {[%emt 0:00:06]} Ne8 {[%emt 0:00:00]} 33. Be2 {[%emt 0:01:58]} Nd6 {[%emt 0:00:00][%cal Oc7d8]} 34. Bd3 {[%emt 0:00:02]} f6 {[%emt 0:00:00]} 35. b4 {[%emt 0:00:29] The position is equal.} Rh5 {[%emt 0:00:00]} 36. Kc2 {[%emt 0:00:26]} Nxf5 {[%emt 0:00:00]} 37. Bxf5 {[%emt 0:00:09][%mdl 64] Remove Defender} Rxf5 {[%emt 0:00:00]} 38. Rxh4 {[%emt 0:00:01] KR-KR} g5 {[%emt 0:00:00]} 39. fxg5 {[%emt 0:00:09]} fxg5 {[%emt 0:00:00]} 40. Rh7+ {[%emt 0:01:17]} Kd6 {[%emt 0:00:00]} 41. Rh6+ {[%emt 0:00:55]} Kc7 {[%emt 0:00:00]} 42. Rg6 {[%emt 0:00:17]} Rf3 {[%emt 0:00:00]} 43. Kb2 {[%emt 0:02:48]} Rf2+ {[%emt 0:00:00]} 44. Kb3 {[%emt 0:00:14]} Rf3+ {[%emt 0:00:00]} 45. Kb2 {[%emt 0:02:28]} Rf2+ {[%emt 0:00:00]} 46. Kc3 {[%emt 0:00:10]} Rf3+ {[%emt 0:00:00]} 47. Kb2 {[%emt 0:00:21] Weighted Error Value: White=0.09 (flawless) /Black=0.05 (flawless)} 1/2-1/2